[Event "101st Irish Championship 2022"]
[Site "Dublin"]
[Date "2022.07.06"]
[Round "5.6"]
[White "Mats, Diana"]
[Black "Flynn, Jacob"]
[Result "0-1"]
[ECO "C54"]
[WhiteElo "2028"]
[BlackElo "2199"]
[Annotator "TA"]
[PlyCount "96"]
[EventDate "2022.07.05"]
[EventType "swiss"]
[EventCountry "IRL"]
[SourceTitle "playchess.com"]
[Source "ChessBase"]
[SourceQuality "1"]
[TimeControl "40/6300+30:1800+30"]

{[%evp 11,96,10,16,-17,-19,-70,-25,-187,-186,-170,-174,-311,-310,-315,-298,-296,-286,-285,-289,-244,-236,-355,-381,-370,-270,-282,-272,-268,-279,-275,-251,-258,-264,-362,-376,-375,-364,-356,-362,-345,-325,-320,-223,-316,-308,-302,-304,-306,-306,-345,-364,-362,-359,-349,-333,-373,-354,-400,-414,-423,-415,-420,-410,-416,-404,-427,-427,-427,-427,-427,-427,-427,-412,-447,-477,-731,-422,-1018,-1018,-29986,-29987,-29987,-29988,-29989,-29990,-29990,-29986]} 1. e4 {[%emt 0:00:04]} e5 {[%emt 0:00:23]} 2. Nf3 {[%emt 0:00:24]} Nc6 {[%emt 0:00:07]} 3. Bc4 {[%emt 0:00:58]} Nf6 {[%emt 0:00:27]} 4. d3 {[%emt 0:08:08]} Bc5 {[%emt 0:00:18]} 5. c3 {[%emt 0:02:57]} a6 {[%emt 0:00:07]} 6. b4 {[%emt 0:02:34]} Ba7 {[%emt 0:00:57]} 7. Qb3 {[%emt 0:01:21] C54: Giuoco Piano: 4 c3 Nf6, main lines with 5 d4 and 5 d3.} O-O {[%emt 0:06:28] [#]} 8. h3 $146 {[%emt 0:02:19]} (8. a4 $11) ({Predecessor:} 8. Bg5 d6 9. O-O h6 10. Bh4 Qe7 11. Nbd2 Nd8 12. a4 Ne6 13. Rad1 Nf4 14. Rfe1 g5 {½-½ (34) Kostanyan,H (1921)-Reyer,U (2161) Berlin 2018}) 8... d6 {[%emt 0:09:39]} 9. g4 $2 {[%emt 0:06:05]} (9. a4 $11 {and White stays safe.}) 9... b5 $19 {[%emt 0:12:12]} 10. Bd5 {[%emt 0:01:17]} Nxd5 {[%emt 0:00:06]} 11. exd5 {[%emt 0:00:55]} (11. Qxd5 $142 Qe8 12. Qb3) 11... Ne7 {[%emt 0:03:28] aiming for ...f5.} 12. Be3 {[%emt 0:02:40]} Bb7 {[%emt 0:08:12]} 13. c4 {[%emt 0:00:31]} c6 {[%emt 0:00:31]} 14. dxc6 {[%emt 0:04:02]} Bxc6 {[%emt 0:04:40]} 15. Nbd2 {[%emt 0:00:07]} Ng6 {[%emt 0:03:53]} 16. h4 {[%emt 0:04:43]} (16. cxb5 $142 axb5 17. Rc1 Bxe3 18. fxe3) 16... Qf6 {[%emt 0:05:18]} 17. cxb5 {[%emt 0:12:05]} axb5 {[%emt 0:06:21]} 18. Bg5 {[%emt 0:02:24]} Qe6 {[%emt 0:00:13]} ({Less strong is} 18... Bxf3 19. Bxf6 Bxh1 20. Bg5 $14) 19. Qxe6 {[%emt 0:00:53]} fxe6 {[%emt 0:00:03]} 20. Ke2 {[%emt 0:04:57]} Nf4+ {[%emt 0:01:41]} 21. Bxf4 {[%emt 0:00:42]} Rxf4 {[%emt 0:00:13]} ({And not} 21... exf4 22. Ne4 $17) 22. g5 {[%emt 0:11:44]} Raf8 {[%emt 0:01:47]} ({Wrong is} 22... Rxb4 $2 23. Rac1 Bd5 24. Rb1 $19) 23. Rh3 {[%emt 0:00:35]} Rxb4 {[%emt 0:02:05]} 24. Rc1 {[%emt 0:07:57]} Bd5 {[%emt 0:01:22]} 25. Rc2 {[%emt 0:08:50]} Bb6 {[%emt 0:07:28] A strong pair of Bishops.} 26. h5 {[%emt 0:02:18]} Kf7 {[%emt 0:12:46]} 27. Rh4 {[%emt 0:08:49]} (27. a3 {was called for.} Ra4 28. Rb2) 27... Rxh4 {[%emt 0:01:04]} 28. Nxh4 {[%emt 0:00:05]} Ke7 {[%emt 0:01:02]} 29. Nhf3 {[%emt 0:03:38]} Kd7 {[%emt 0:03:55]} 30. Rb2 {[%emt 0:00:34]} Kc6 {[%emt 0:00:26]} 31. Rc2+ {[%emt 0:06:20]} Kb7 {[%emt 0:00:47]} 32. Rb2 {[%emt 0:00:29]} Ka6 {[%emt 0:04:20]} 33. Rc2 {[%emt 0:01:16]} b4 {[%emt 0:02:03]} 34. g6 {[%emt 0:05:04]} hxg6 {[%emt 0:01:02]} 35. hxg6 {[%emt 0:00:02]} Kb5 {[%emt 0:01:40]} 36. Ne4 {[%emt 0:02:25]} Bxe4 {[%emt 0:01:18]} 37. dxe4 {[%emt 0:00:02][%mdl 4096] Endgame KRB-KRN} Rf4 {[%emt 0:01:15]} 38. Ng5 {[%emt 0:00:41]} Rxf2+ {[%emt 0:00:28]} 39. Kd3 {[%emt 0:00:05] [#] Hoping for Rxf2.} Rf6 {[%emt 0:00:22]} 40. Nf7 {[%emt 0:00:53]} Bc5 {[%emt 0:00:28]} 41. Rg2 {[%emt 0:30:38]} Rf3+ {[%emt 0:31:15]} 42. Kc2 {[%emt 0:00:50]} Kc4 {[%emt 0:03:20]} 43. Ng5 {[%emt 0:01:48]} (43. Kd2 $142 Ra3 44. Kc1) 43... Rf6 {[%emt 0:03:12]} 44. Nh7 {[%emt 0:00:12]} (44. Nf7 $142) 44... Rf1 {[%emt 0:03:50] [#] ( -> ...Ra1)} 45. Ng5 {[%emt 0:01:46]} Ra1 {[%emt 0:02:21] Black mates.} 46. Rg3 {[%emt 0:00:00]} Rxa2+ {[%emt 0:00:00]} 47. Kb1 {[%emt 0:00:00]} b3 {[%emt 0:00:00]} 48. Nxe6 {[%emt 0:00:00]} Bb4 {[%emt 0:00:00] White did not feel at home in the position after the opening.  Weighted Error Value: White=0.57/Black=0.18 (very precise)} 0-1

[Event "101st Irish Championship 2022"]
[Site "Dublin"]
[Date "2022.07.06"]
[Round "5.7"]
[White "Goss, Alex"]
[Black "O`cuilleanain, Oisin"]
[Result "0-1"]
[ECO "B22"]
[WhiteElo "1859"]
[BlackElo "1936"]
[Annotator "TA"]
[PlyCount "66"]
[EventDate "2022.07.05"]
[EventType "swiss"]
[EventCountry "IRL"]
[SourceTitle "playchess.com"]
[Source "ChessBase"]
[SourceQuality "1"]
[TimeControl "40/6300+30:1800+30"]

{[%evp 9,66,-34,-18,-16,-6,-20,-36,-23,-18,-24,0,-19,-36,-92,-66,-83,-81,-77,-9,-8,22,15,27,0,-7,-136,-145,-130,-129,-172,-171,-173,-162,-270,-272,-370,-368,-359,-354,-345,-1,-254,-254,-250,-247,-268,-270,-325,-320,-318,-315,-361,-358,-355,-351,-363,-353,-480,-474]} 1. e4 {[%emt 0:00:03]} c5 {[%emt 0:00:15]} 2. Nf3 {[%emt 0:00:08]} e6 {[%emt 0:00:21]} 3. c3 {[%emt 0:00:50]} Nf6 {[%emt 0:06:12][%cal Bg8f6,Bf6d5,Bd5e7,Be7g6][%mdl 32]} 4. e5 {[%emt 0:03:42]} Nd5 {[%emt 0:00:30]} 5. c4 {[%emt 0:00:35]} Ne7 {[%emt 0:12:03]} 6. d4 {[%emt 0:00:38] B22: Sicilian: 2 c3.} cxd4 {[%emt 0:01:21]} 7. Qxd4 {[%emt 0:05:07]} Nbc6 {[%emt 0:00:55]} 8. Qe4 {[%emt 0:02:23] Black is slightly better.} Ng6 {[%emt 0:03:42]} 9. Nc3 {[%emt 0:05:59]} a6 {[%emt 0:03:45] [#]} 10. h4 $146 {[%emt 0:02:21]} ({Predecessor:} 10. Bf4 Nxf4 11. Qxf4 Be7 12. Bd3 d6 13. exd6 Bxd6 14. Qe3 O-O 15. O-O Qf6 16. Ne4 {1-0 (50) Hng,M (1678)-Lee,K Penang 2013}) 10... Qc7 {[%emt 0:02:02][%cal Rg6e5]} 11. Bf4 {[%emt 0:17:51]} (11. Be2 $15) 11... Nxf4 {[%emt 0:08:55]} 12. Qxf4 {[%emt 0:00:17]} d6 {[%emt 0:00:35]} 13. exd6 {[%emt 0:03:47]} Qxd6 {[%emt 0:00:13]} (13... Bxd6 $17 14. Qe4 Bc5) 14. Qe3 $11 {[%emt 0:02:40]} Nb4 {[%emt 0:05:10] [#] And now ...Nc2+ would win.} 15. Rc1 {[%emt 0:01:13] Inhibits Nc2+.} Qc5 {[%emt 0:14:55]} 16. Qe2 {[%emt 0:05:45]} Qa5 {[%emt 0:01:52]} 17. Nd2 {[%emt 0:03:12]} (17. Qd2 $11 {remains equal.}) 17... Nxa2 $17 {[%emt 0:01:10]} 18. Nxa2 {[%emt 0:09:56]} Qxa2 {[%emt 0:00:08]} 19. Ne4 {[%emt 0:02:29]} Bb4+ {[%emt 0:05:00]} 20. Nc3 {[%emt 0:00:50]} Bd7 {[%emt 0:00:16] Strongly threatening ...0-0-0.} 21. g4 {[%emt 0:01:38]} (21. Qd2 $142 Qa5 22. Bd3) 21... Bc6 $19 {[%emt 0:03:16]} 22. Rh3 {[%emt 0:00:18]} O-O-O {[%emt 0:00:22]} 23. Qc2 {[%emt 0:02:12]} Rd4 {[%emt 0:02:19]} 24. Be2 {[%emt 0:09:38]} Ba4 $2 {[%emt 0:03:59] [#] This bishop pair is nice.} (24... h5 $19 25. gxh5 Rhd8) 25. Qb1 $2 {[%emt 0:00:28][%mdl 8192] Loses the game.} (25. Kf1 $11 {and White stays safe.} Qb3 26. Qxb3 Bxb3 27. Nb5 axb5 28. Rxb3) 25... Qxb1 {[%emt 0:01:16]} 26. Rxb1 {[%emt 0:00:06]} Bb3 {[%emt 0:00:16]} 27. Kf1 {[%emt 0:01:44]} Bxc4 {[%emt 0:00:15]} 28. Rc1 {[%emt 0:00:39]} Kb8 {[%emt 0:01:24]} (28... Rxg4 29. Nd1 $14 (29. Na2 Bd6 $14)) 29. Bxc4 {[%emt 0:04:24]} Rxc4 {[%emt 0:00:07]} 30. Rd3 {[%emt 0:00:06]} Rhc8 {[%emt 0:00:40]} 31. Rd7 {[%emt 0:00:35]} R8c7 {[%emt 0:01:03]} ({Not} 31... Rxg4 $2 32. Rxf7 Rxh4 33. Rd1 Bxc3 34. bxc3 $19) 32. Rd8+ {[%emt 0:00:29]} Ka7 {[%emt 0:00:06][%cal Rb4c3]} 33. Ra1 {[%emt 0:01:08]} Bxc3 {[%emt 0:00:14] Weighted Error Value: White=0.48/Black=0.32} 0-1

[Event "101st Irish Championship 2022"]
[Site "Dublin"]
[Date "2022.07.06"]
[Round "5.8"]
[White "Kennedy, John"]
[Black "Doyle, Anthony"]
[Result "1-0"]
[ECO "D78"]
[WhiteElo "2047"]
[BlackElo "2116"]
[Annotator "TA"]
[PlyCount "129"]
[EventDate "2022.07.05"]
[EventType "swiss"]
[EventCountry "IRL"]
[SourceTitle "playchess.com"]
[Source "ChessBase"]
[SourceQuality "1"]
[TimeControl "40/6300+30:1800+30"]

{[%evp 14,129,35,32,49,46,43,20,75,66,75,56,72,41,56,49,77,82,88,100,99,95,87,83,120,106,113,129,225,233,316,305,310,265,306,311,308,316,304,262,298,230,218,194,197,192,199,193,246,259,252,255,239,235,304,301,286,198,185,142,234,229,235,231,280,296,290,273,465,455,504,520,526,522,524,509,527,518,514,520,520,520,486,393,565,532,529,521,466,439,436,415,643,628,847,835,773,733,991,950,1010,888,871,724,1256,1201,1265,1266,1294,1166,1884,1486,12842,12841,12842,12842,12845,12846]} 1. Nf3 {[%emt 1:46:00]} Nf6 {[%emt 0:00:40]} 2. g3 {[%emt 0:00:00]} g6 {[%emt 0:00:13]} 3. Bg2 {[%emt 0:00:00]} Bg7 {[%emt 0:00:06]} 4. d4 {[%emt 0:00:00]} O-O {[%emt 0:01:27]} 5. O-O {[%emt 0:00:00]} d5 {[%emt 0:01:45]} 6. c4 {[%emt 0:00:00]} c6 {[%emt 0:00:38] 6...c6 scores better than 6...dxc4.} 7. Nc3 {[%emt 0:00:00]} Bf5 {[%emt 0:18:04]} 8. Ne5 {[%emt 0:00:00]} dxc4 {[%emt 0:17:14] D78: Fianchetto Grünfeld: 6 0-0 c6.} 9. Nxc4 {[%emt 0:00:00]} Be6 {[%emt 0:03:04]} 10. Ne5 {[%emt 0:00:00] [#]} Ng4 $146 {[%emt 0:13:39] [#]} (10... Nd5 $11 {keeps the balance.}) ({Predecessor:} 10... Nbd7 11. e4 Nxe5 12. dxe5 Nd7 13. f4 Qb6+ 14. Kh1 Rfd8 15. Qe2 Qb4 16. Re1 Bc4 {0-1 (55) Dixit,A (2084)-Komiagina,M (2241) Chess.com INT 2021}) 11. Nf3 $1 $16 {[%emt 0:00:00]} Na6 {[%emt 0:07:38]} 12. a3 {[%emt 0:00:00]} Nc7 {[%emt 0:05:12]} 13. h3 {[%emt 0:00:00]} Nf6 {[%emt 0:00:14]} 14. e4 {[%emt 0:00:00]} h6 {[%emt 0:07:31]} 15. Be3 {[%emt 0:00:00] White stays focused until the end.} Qc8 {[%emt 0:01:19]} 16. Kh2 {[%emt 0:00:00]} Rd8 {[%emt 0:00:07]} 17. Qd2 {[%emt 0:00:00]} Kh7 {[%emt 0:00:17]} 18. Qc2 {[%emt 0:00:00]} Nd7 {[%emt 0:05:31]} 19. Rfd1 {[%emt 0:00:00] White is more active.} Nb6 {[%emt 0:00:21]} 20. b3 {[%emt 0:00:00] Against Nc4} a5 {[%emt 0:00:23]} (20... Na6 $16) 21. d5 $18 {[%emt 0:00:00]} Bxc3 {[%emt 0:00:21]} 22. Qxc3 {[%emt 0:00:00]} Nbxd5 {[%emt 0:00:09]} 23. exd5 {[%emt 0:00:00]} Nxd5 {[%emt 0:00:07]} 24. Qc1 {[%emt 0:00:00]} Nxe3 {[%emt 0:01:06]} 25. Qxe3 {[%emt 0:00:00]} Qc7 {[%emt 0:00:29]} 26. Re1 {[%emt 0:00:00]} Qd6 {[%emt 0:01:26]} 27. Ne5 {[%emt 0:00:00]} Qd4 {[%emt 0:01:19] [#]} 28. Be4 $1 {[%emt 0:00:00]} Qxe3 {[%emt 0:01:44]} 29. Rxe3 {[%emt 0:00:00]} Rd2 {[%emt 0:00:30]} 30. Kg2 {[%emt 0:00:00]} Rb2 {[%emt 0:05:22]} (30... Rad8 {might work better.} 31. Nd3 Rd6) 31. Nc4 {[%emt 0:01:13]} Bxc4 {[%emt 0:00:36]} 32. bxc4 {[%emt 0:00:04]} Rd8 {[%emt 0:00:05]} 33. Rb1 {[%emt 0:00:37]} Rdd2 {[%emt 0:01:52]} 34. Rxb2 {[%emt 0:00:07]} Rxb2 {[%emt 0:00:06][%mdl 4096] Endgame KRB-KR} 35. Rc3 {[%emt 0:07:03]} Kg7 {[%emt 0:06:40]} 36. c5 {[%emt 0:02:31]} Kf6 {[%emt 0:01:38]} (36... f5 $16) 37. Kf3 {[%emt 0:00:10]} Ke5 {[%emt 0:01:09] [#] And now ...f5 would win.} 38. Ke3 $1 {[%emt 0:00:06]} Ke6 {[%emt 0:02:39]} 39. Bc2 {[%emt 0:00:20]} f5 {[%emt 0:10:09]} 40. f4 {[%emt 0:03:48]} h5 $2 {[%emt 0:01:18]} (40... Kf6 41. Kd2 Rb5) 41. Kd3 {[%emt 0:32:07]} h4 {[%emt 0:02:04]} 42. gxh4 {[%emt 0:00:00] Hoping for Rb3.} Kf6 {[%emt 0:01:09]} 43. Kd2 {[%emt 0:00:00] aiming for Kc1.} a4 {[%emt 0:01:21]} 44. Kc1 {[%emt 0:00:00]} Rb5 {[%emt 0:00:09]} 45. Bxa4 {[%emt 0:00:00]} Ra5 {[%emt 0:00:07]} 46. Bd1 {[%emt 0:00:00]} e5 {[%emt 0:00:07]} 47. fxe5+ {[%emt 0:00:00]} Kxe5 {[%emt 0:00:07]} 48. Kd2 {[%emt 0:00:00]} Kd4 {[%emt 0:05:36]} (48... Ra8 {is a better defense.} 49. h5 gxh5 50. Bxh5 Rh8) 49. a4 {[%emt 0:00:00]} Ra8 {[%emt 0:01:57]} 50. Bb3 {[%emt 0:00:00]} Rh8 {[%emt 0:01:10]} 51. Bf7 {[%emt 0:00:00]} Ke5 {[%emt 0:02:58]} 52. Re3+ {[%emt 0:00:00]} Kf6 {[%emt 0:01:35]} (52... Kd4 $142 53. Bxg6 Rxh4 54. Bxf5 Kxc5) 53. Bb3 {[%emt 0:00:00] White is clearly winning.} Rxh4 {[%emt 0:00:11]} 54. Re6+ {[%emt 0:00:00]} Kg5 {[%emt 0:00:18]} 55. Re7 {[%emt 0:00:00]} Rxh3 {[%emt 0:00:44]} 56. Rxb7 {[%emt 0:00:00] Strongly threatening a5.} Rh2+ {[%emt 0:09:48]} 57. Kd3 {[%emt 0:00:00]} Rh8 {[%emt 0:00:18]} 58. Re7 {[%emt 0:00:00]} Kf4 {[%emt 0:00:43]} 59. Re6 {[%emt 0:00:00][%csl LRc6,LRg6]} g5 {[%emt 0:00:07]} 60. Rxc6 {[%emt 0:00:00]} g4 {[%emt 0:01:11]} 61. Rg6 {[%emt 0:01:43]} g3 {[%emt 0:00:51]} 62. a5 {[%emt 0:00:49][%cal Ba4a5,Ba5a6,Ba6a7][%mdl 32]} Kf3 {[%emt 0:04:54]} 63. Bd5+ {[%emt 0:01:16]} Kf2 {[%emt 0:00:26]} 64. a6 {[%emt 0:01:14]} f4 {[%emt 0:00:47]} 65. a7 {[%emt 0:00:15] Weighted Error Value: White=0.12 (very precise) /Black=0.31} 1-0

[Event "101st Irish Championship 2022"]
[Site "Dublin"]
[Date "2022.07.06"]
[Round "5.9"]
[White "Venkatesan, Kavin"]
[Black "Ivanov, Andrey A."]
[Result "1-0"]
[ECO "A57"]
[WhiteElo "2076"]
[BlackElo "2180"]
[Annotator "TA"]
[PlyCount "139"]
[EventDate "2022.07.05"]
[EventType "swiss"]
[EventCountry "IRL"]
[SourceTitle "playchess.com"]
[Source "ChessBase"]
[SourceQuality "1"]
[TimeControl "40/6300+30:1800+30"]

{[%evp 9,139,15,53,54,54,40,48,-2,16,20,18,28,58,-15,-22,-15,29,26,60,0,102,17,27,21,44,35,36,0,0,0,0,0,0,0,80,72,252,269,245,252,298,33,34,34,36,36,56,21,22,29,40,7,8,1,1,1,1,1,1,0,8,8,8,0,0,0,0,0,0,0,0,0,0,0,87,87,483,475,483,404,1016,988,29961,29960,29963,29964,29964,29965,29965,29966,29966,29967,29967,29968,29968,29969,29969,29971,29970,29971,29971,29972,29973,29974,29973,29969,29973,29974,29976,29977,29977,29978,29979,29979,29980,29980,29980,29981,29981,29982,29983,29984,29984,29985,29988,29989,29989,29989,29989,29990,29997,29994]} 1. d4 {[%emt 0:00:04]} Nf6 {[%emt 0:00:18]} 2. c4 {[%emt 0:00:06]} c5 {[%emt 0:00:31]} 3. d5 {[%emt 0:00:07]} b5 {[%emt 0:00:12]} 4. Qc2 {[%emt 0:03:18]} bxc4 {[%emt 0:00:30]} 5. e4 {[%emt 0:00:11]} d6 {[%emt 0:00:13]} ({Don't take} 5... Qa5+ 6. Bd2 Qc7 7. Nf3 $14 (7. Qxc4 Ba6 $14) (7. Bxc4 d6 $14)) 6. Bxc4 {[%emt 0:00:28] A57: Benko/Volga Gambit.} g6 {[%emt 0:00:16]} 7. Nc3 {[%emt 0:03:52]} Bg7 {[%emt 0:00:57]} 8. f4 {[%emt 0:03:05]} ({Better is} 8. Nf3 $14) 8... Nfd7 {[%emt 0:04:39]} 9. Nf3 {[%emt 0:03:27]} O-O {[%emt 0:00:48]} 10. O-O {[%emt 0:03:53]} Ba6 {[%emt 0:08:02]} 11. Qd3 {[%emt 0:18:45]} (11. Nb5 $14) 11... Bxc4 $11 {[%emt 0:13:50]} 12. Qxc4 {[%emt 0:00:45] [#]} Nb6 $146 {[%emt 0:01:39]} ({Predecessor:} 12... Qa5 13. Bd2 Qa6 14. Qb5 Nb6 15. Rad1 Qxb5 16. Nxb5 a6 17. Nc3 Nc4 18. Bc1 Bxc3 19. bxc3 {½-½ (73) Rakotomaharo,F (2446)-Van Meegen,R (2183) Groningen 2016}) 13. Qe2 {[%emt 0:06:31]} Qd7 {[%emt 0:11:35]} 14. Rd1 {[%emt 0:10:03]} (14. a4 $14) 14... e6 {[%emt 0:02:25]} (14... Bxc3 $11 15. bxc3 Qa4) 15. e5 {[%emt 0:14:09]} ({White should play} 15. dxe6 $16 fxe6 16. a4) 15... dxe5 $1 {[%emt 0:14:28]} 16. Nxe5 {[%emt 0:00:22]} Qe7 {[%emt 0:06:29]} 17. d6 {[%emt 0:07:14]} Qb7 {[%emt 0:05:30]} 18. Qe4 {[%emt 0:02:23]} Qxe4 {[%emt 0:01:04]} 19. Nxe4 {[%emt 0:00:02]} N8d7 {[%emt 0:00:24]} 20. Nxd7 {[%emt 0:03:49]} Nxd7 {[%emt 0:00:17]} 21. Be3 {[%emt 0:08:46]} Bxb2 {[%emt 0:01:26]} (21... Rfc8 $11) 22. Rab1 $36 {[%emt 0:00:10][%mdl 2048] Black is under strong pressure. White is more active.} Rab8 {[%emt 0:00:18]} (22... Bd4 $16 {keeps fighting.} 23. Bxd4 cxd4) 23. Nxc5 $18 {[%emt 0:01:50]} Nxc5 {[%emt 0:02:11]} 24. Bxc5 {[%emt 0:00:18] Threatens to win with d7.} Rb7 {[%emt 0:02:42]} 25. Bxa7 $2 {[%emt 0:02:43]} Rxa7 $14 {[%emt 0:00:13]} 26. Rxb2 $18 {[%emt 0:00:03][%mdl 4096] Endgame KRR-KRR} Rd8 {[%emt 0:00:33]} 27. Rd4 {[%emt 0:00:47]} Ra6 {[%emt 0:00:27]} 28. Rbd2 {[%emt 0:00:32]} Rd7 {[%emt 0:00:36]} 29. a4 {[%emt 0:02:36]} Kf8 {[%emt 0:00:22]} 30. g3 {[%emt 0:03:44]} Ke8 {[%emt 0:00:22]} 31. Kg2 {[%emt 0:04:04]} Rda7 {[%emt 0:01:01]} 32. Ra2 {[%emt 0:03:54]} Kd7 {[%emt 0:00:16]} 33. Kf3 {[%emt 0:00:47]} Ra5 {[%emt 0:00:57]} 34. Rb2 {[%emt 0:02:41]} Rd5 {[%emt 0:02:16]} 35. Rxd5 {[%emt 0:01:49]} exd5 $11 {[%emt 0:35:13] KR-KR} 36. Rb6 {[%emt 0:01:37]} Rxa4 {[%emt 0:00:00]} 37. Rb7+ {[%emt 0:00:05]} Ke6 {[%emt 0:00:00]} 38. Re7+ {[%emt 0:00:18]} Kxd6 {[%emt 0:00:00]} 39. Rxf7 {[%emt 0:00:09]} Ra3+ {[%emt 0:00:00]} 40. Kg4 {[%emt 0:02:09]} d4 {[%emt 0:00:00]} 41. Rxh7 {[%emt 0:30:47] Strongly threatening Rg7.} d3 {[%emt 0:06:14] [#]} (41... Kd5 $11 {remains equal.}) 42. Kf3 $1 $16 {[%emt 0:00:15] White leaves nothing to chance now.} d2+ $2 {[%emt 0:02:04][%mdl 8192]} (42... Ra2 $16) 43. Ke2 $18 {[%emt 0:00:18]} d1=Q+ {[%emt 0:00:28]} 44. Kxd1 {[%emt 0:00:10] Rg7 is the strong threat.} Ra2 {[%emt 0:00:06]} (44... Ke6 $142 45. Kd2 Kf5) 45. Rh6 {[%emt 0:03:37]} Ke7 {[%emt 0:00:30]} 46. Rxg6 {[%emt 0:00:21] White mates.} Rxh2 {[%emt 0:00:06]} 47. Ke1 {[%emt 0:00:00]} Kf7 {[%emt 0:00:00]} 48. Rg5 {[%emt 0:00:00]} Kf6 {[%emt 0:00:00]} 49. Kf1 {[%emt 0:00:00]} Ra2 {[%emt 0:00:00] [#]} 50. Re5 $1 {[%emt 0:00:00]} Rb2 {[%emt 0:00:00]} 51. Re2 {[%emt 0:00:00]} Rb1+ {[%emt 0:00:00]} 52. Kg2 {[%emt 0:00:00]} Kf5 {[%emt 0:00:00]} 53. Re5+ {[%emt 0:00:00]} Kg6 {[%emt 0:00:00]} 54. Kf3 {[%emt 0:00:00]} Kf6 {[%emt 0:00:00]} 55. Ra5 {[%emt 0:00:00]} Kg6 {[%emt 0:00:00]} 56. Kg4 {[%emt 0:00:00]} Rb6 {[%emt 0:00:00]} 57. Rg5+ {[%emt 0:00:00]} Kh6 {[%emt 0:00:00]} 58. Rh5+ {[%emt 0:00:00]} Kg6 {[%emt 0:00:00]} 59. f5+ {[%emt 0:00:00]} Kg7 {[%emt 0:00:00]} 60. Kg5 {[%emt 0:00:00]} Rc6 {[%emt 0:00:00]} 61. g4 {[%emt 0:00:00]} Rb6 {[%emt 0:00:00]} 62. Rh2 {[%emt 0:00:00]} Ra6 {[%emt 0:00:00]} 63. Rb2 {[%emt 0:00:00]} Ra7 {[%emt 0:00:00]} 64. Rb5 {[%emt 0:00:00]} Rc7 {[%emt 0:00:00]} 65. f6+ {[%emt 0:00:00]} Kf7 {[%emt 0:00:00]} 66. Kf5 {[%emt 0:00:00]} Kg8 {[%emt 0:00:00]} 67. g5 {[%emt 0:00:00]} Kh7 {[%emt 0:00:00]} 68. Re5 {[%emt 0:00:00]} Rc1 {[%emt 0:00:00]} 69. Re7+ {[%emt 0:00:00]} Kh8 {[%emt 0:00:00]} 70. Kg6 {[%emt 0:00:00] Weighted Error Value: White=0.21 (precise) /Black=0.51} 1-0

[Event "101st Irish Championship 2022"]
[Site "Dublin"]
[Date "2022.07.06"]
[Round "5.10"]
[White "Cafolla, Peter"]
[Black "Fox, Anthony"]
[Result "1-0"]
[ECO "C90"]
[WhiteElo "1937"]
[BlackElo "1945"]
[Annotator "TA"]
[PlyCount "77"]
[EventDate "2022.07.05"]
[EventType "swiss"]
[EventCountry "IRL"]
[SourceTitle "playchess.com"]
[Source "ChessBase"]
[SourceQuality "1"]
[TimeControl "40/6300+30:1800+30"]

{[%evp 22,77,12,14,48,41,55,56,141,133,135,143,195,202,206,206,200,175,203,205,229,225,241,243,242,238,254,245,258,256,259,245,261,243,263,257,312,300,297,298,296,306,322,312,408,379,498,461,544,547,585,587,1845,1767,1728,1691,1495,1213]} 1. e4 {[%emt 0:00:03]} e5 {[%emt 0:00:07]} 2. Nf3 {[%emt 0:00:05]} Nc6 {[%emt 0:00:07]} 3. Bb5 {[%emt 0:00:06]} a6 {[%emt 0:00:12]} 4. Ba4 {[%emt 0:00:13]} Nf6 {[%emt 0:00:10]} 5. O-O {[%emt 0:00:06]} Be7 {[%emt 0:00:05]} 6. Re1 {[%emt 0:00:12]} b5 {[%emt 0:00:14]} 7. Bb3 {[%emt 0:00:07]} d6 {[%emt 0:00:09]} 8. a4 {[%emt 0:00:14]} Bg4 {[%emt 0:02:28]} 9. c3 {[%emt 0:02:20]} O-O {[%emt 0:02:27]} 10. h3 {[%emt 0:00:06]} Bxf3 {[%emt 0:01:06]} 11. Qxf3 {[%emt 0:00:12]} Na5 {[%emt 0:00:09]} 12. Bc2 {[%emt 0:08:03]} b4 {[%emt 0:00:23] is the legacy move (12...c5). C90: Closed Ruy Lopez with 7...d6: Early deviations.} 13. d4 {[%emt 0:01:17] [#]} b3 $146 {[%emt 0:09:53]} ({Predecessor:} 13... c5 14. d5 b3 15. Bd3 c4 16. Bf1 Nd7 17. Qg4 Kh8 18. Be3 Rc8 19. Nd2 g6 20. Bh6 {½-½ (40) Predojevic,B (2625)-Lie,E (2459) Norway 2017}) 14. Bd3 {[%emt 0:02:25]} c5 {[%emt 0:00:41]} ({Black should play} 14... Nd7 $14) 15. dxe5 {[%emt 0:01:37]} dxe5 {[%emt 0:00:24]} 16. Nd2 {[%emt 0:00:47] Inhibits c4.} c4 {[%emt 0:24:35]} (16... Ne8 $16 {might work better.} 17. Qe2 Nd6) 17. Nxc4 $18 {[%emt 0:06:42]} Qc7 {[%emt 0:07:19]} 18. Qe2 {[%emt 0:11:20]} Nb7 {[%emt 0:06:57]} 19. Be3 {[%emt 0:06:04]} Nd7 {[%emt 0:04:22]} 20. Nd2 {[%emt 0:04:44][%csl LRa6,LRb3]} Ndc5 {[%emt 0:10:19]} 21. Bc4 {[%emt 0:07:08]} Na5 {[%emt 0:04:27]} 22. Bd5 {[%emt 0:07:22] This bishop pair is nice.} Rab8 {[%emt 0:03:23]} 23. Bxc5 {[%emt 0:02:20]} Bxc5 {[%emt 0:00:50]} 24. Qxa6 {[%emt 0:00:33]} Rfd8 {[%emt 0:02:23]} 25. Qe2 {[%emt 0:02:32]} Rd6 {[%emt 0:02:32]} 26. Kh1 {[%emt 0:04:12]} Rf6 {[%emt 0:01:05]} 27. Rf1 {[%emt 0:01:45]} h6 {[%emt 0:04:30]} 28. Nf3 {[%emt 0:03:33]} g6 {[%emt 0:04:24]} 29. Nh2 {[%emt 0:00:49]} h5 {[%emt 0:00:15] Prevents Ng4.} 30. Nf3 {[%emt 0:00:18]} Kg7 {[%emt 0:00:40]} 31. Ng5 {[%emt 0:00:42]} Qe7 {[%emt 0:06:02]} 32. h4 {[%emt 0:01:24]} Rbb6 {[%emt 0:03:00]} 33. g3 {[%emt 0:01:06]} Qc7 {[%emt 0:04:20]} 34. Rad1 {[%emt 0:03:21] White is clearly winning.} Qe7 {[%emt 0:00:57]} 35. Kg2 {[%emt 0:07:16]} Qe8 {[%emt 0:00:18]} 36. f4 {[%emt 0:02:17]} Qe7 {[%emt 0:01:39]} 37. fxe5 {[%emt 0:01:04]} Qxe5 {[%emt 0:00:29]} 38. Nxf7 {[%emt 0:00:45]} Qe7 {[%emt 0:01:43]} 39. Qd2 {[%emt 0:00:32] Black got outplayed after the opening.  Weighted Error Value: White=0.04 (flawless) /Black=0.33} 1-0